bitfinex/quotes_SOLUSD_20241024
["timestamp","ask_amount","ask_price","bid_price","bid_amount"]
[1729792950686,20.18082524,175.56,175.5,20.18082524]
[1729792951274,20.18082524,175.56,175.51,20.18082524]
[1729792951683,25.87662524,175.57,175.52,20.18082524]
[1729792952071,6.579,175.59,175.54,20.18082524]
[1729792952379,26.75982524,175.59,175.54,20.18082524]
[1729792953071,32.45482524,175.59,175.54,20.18082524]
[1729792955467,32.45482524,175.59,175.53,20.18082524]
[1729792955468,25.87652524,175.58,175.53,20.18082524]
[1729792957295,5.6957,175.58,175.53,20.18082524]
[1729792958169,5.6957,175.58,175.54,20.18082524]
[1729792959187,16.2275,175.7,175.58,20.25098]
[1729792959469,9.9045882,175.69,175.65,20.18082524]
[1729792959674,5.6919,175.69,175.64,20.18082524]
[1729792959892,25.87272524,175.69,175.64,20.18082524]
[1729792960398,20.18082524,175.68,175.63,20.18082524]
[1729792960573,5.6919,175.69,175.58,20.25098]
[1729792960574,20.18082524,175.67,175.62,20.18082524]
[1729792960773,20.18082524,175.68,175.62,20.18082524]
[1729792961176,20.18082524,175.68,175.63,20.18082524]
[1729792961686,5.6919,175.69,175.63,20.18082524]
[1729792961875,5.6919,175.69,175.64,20.18082524]
[1729792963094,5.6919,175.69,175.59,80.72330096]
[1729792963095,5.6919,175.69,175.66,20.18082524]
[1729792963395,5.6919,175.69,175.62,20.18082524]
[1729792963396,20.18082524,175.68,175.62,20.18082524]
[1729792963567,20.18082524,175.65,175.6,20.18082524]
[1729792963967,20.18082524,175.65,175.54,0.1]
[1729792963968,20.18082524,175.65,175.59,20.18082524]
[1729792964195,43.95770924,175.66,175.61,20.18082524]
[1729792964493,5.6934,175.64,175.59,20.18082524]
[1729792964998,20.18082524,175.63,175.57,20.18082524]
[1729792965196,35.99542524,175.62,175.56,20.18082524]
[1729792965575,20.18082524,175.6,175.55,20.18082524]
[1729792965779,20.18082524,175.59,175.54,20.18082524]
[1729792966292,20.18082524,175.58,175.52,20.18082524]
[1729792966693,25.87642524,175.58,175.53,20.18082524]
[1729792967094,20.18082524,175.57,175.51,20.18082524]
[1729792967295,20.18082524,175.56,175.51,20.18082524]
[1729792968276,37.26737534,175.57,175.51,31.57147534]
[1729792969110,31.57147534,175.56,175.51,31.57147534]
[1729792969282,31.57147534,175.54,175.49,31.57147534]
[1729792969694,31.57147534,175.53,175.48,31.57147534]
[1729792969898,31.57147534,175.53,175.47,31.57147534]
[1729792970306,37.26847534,175.53,175.47,31.57147534]
[1729792971195,31.57147534,175.52,175.47,31.57147534]
[1729792971403,31.57147534,175.51,175.46,31.57147534]
[1729792971900,31.57147534,175.5,175.45,31.57147534]
[1729792972098,31.57147534,175.48,175.43,31.57147534]
[1729792972289,37.27017534,175.48,175.43,31.57147534]
[1729792972491,37.27017534,175.48,175.42,31.57147534]
[1729792973480,37.26997534,175.49,175.44,31.57147534]
[1729792976899,5.6985,175.49,175.45,31.57147534]
[1729792977892,5.6985,175.49,175.44,15.78573767]
[1729792978097,37.26997534,175.49,175.44,31.57147534]
[1729792979819,31.57147534,175.48,175.43,31.57147534]
[1729792980042,31.57147534,175.46,175.41,31.57147534]
[1729792980323,31.57147534,175.44,175.39,31.57147534]
[1729792983830,31.57147534,175.45,175.4,31.57147534]
[1729792985528,31.57147534,175.42,175.37,31.57147534]
[1729792985742,31.57147534,175.41,175.36,31.57147534]
[1729792987218,37.27237534,175.41,175.36,31.57147534]
[1729792987620,31.57147534,175.4,175.35,31.57147534]
[1729792987827,31.57147534,175.38,175.33,31.57147534]
[1729792988128,31.57147534,175.37,175.32,31.57147534]
[1729792988920,31.57147534,175.36,175.31,31.57147534]
[1729792989532,31.57147534,175.34,175.3,31.57147534]
[1729792989700,31.57147534,175.34,175.29,31.57147534]
[1729792991313,31.57147534,175.33,175.28,31.57147534]
[1729792991602,5.7035,175.33,175.28,31.57147534]
[1729792991807,5.7035,175.33,175.29,31.57147534]
[1729792992108,37.27387534,175.37,175.32,31.57147534]
[1729792992308,5.7024,175.37,175.33,31.57147534]
[1729792992508,22.2014,175.4,175.23,31.57147534]
[1729792992509,27.9028,175.4,175.36,31.57147534]
[1729792992910,59.47427534,175.4,175.35,31.57147534]
[1729792993618,27.9028,175.4,175.36,31.57147534]
[1729792995825,22.2014,175.4,175.38,31.57147534]
[1729792996530,15.8865,175.4,175.38,31.57147534]
[1729792998623,11.8699,175.44,175.39,31.57147534]
[1729792998804,11.8699,175.44,175.4,31.57147534]
[1729792999215,11.8699,175.44,175.39,31.57147534]
[1729793001114,43.44137534,175.44,175.38,31.57147534]
[1729793001733,6.1697,175.44,175.39,31.57147534]
[1729793002035,11.8696,175.44,175.39,31.57147534]
[1729793002234,11.8696,175.44,175.4,31.57147534]
[1729793002917,23.902374,175.43,175.39,31.57147534]
[1729793003122,23.902374,175.43,175.38,31.57147534]
[1729793004623,5.7006,175.42,175.38,31.57147534]
[1729793008109,23.902374,175.41,175.32,31.57147534]
[1729793008336,23.902374,175.41,175.3,1.016]
[1729793008337,31.57147534,175.4,175.35,31.57147534]
[1729793009413,29.603774,175.4,175.36,31.57147534]
[1729793009628,29.603774,175.4,175.37,31.57147534]
[1729793010028,23.776884,175.41,175.38,31.57147534]
[1729793010935,23.776884,175.43,175.4,31.57147534]
[1729793011138,23.776884,175.43,175.39,31.57147534]
[1729793012224,6.1697,175.44,175.41,31.57147534]
[1729793012832,11.8696,175.44,175.41,31.57147534]
[1729793013020,11.8696,175.44,175.4,31.57147534]
[1729793014530,6.1697,175.44,175.4,31.57147534]
[1729793015735,11.8699,175.44,175.39,31.57147534]
[1729793016335,11.8699,175.44,175.39,20.2317721]
[1729793016533,32.1016721,175.44,175.39,20.2317721]
[1729793016736,11.8699,175.44,175.39,20.2317721]
[1729793016924,6.1697,175.44,175.4,20.2317721]
[1729793017341,0.98963737,175.55,175.46,0.1]
[1729793017642,42.7015721,175.61,175.54,20.2317721]
[1729793017838,22.4698,175.61,175.57,20.2317721]
[1729793018040,22.4698,175.61,175.58,20.2317721]
[1729793018344,22.4698,175.61,175.59,31.54245558]
[1729793019545,28.1642,175.61,175.58,31.54245558]
[1729793019718,28.1642,175.61,175.57,31.54245558]
[1729793019925,28.1642,175.61,175.58,31.54245558]
[1729793022140,28.1642,175.61,175.57,31.54245558]
[1729793022726,59.70665558,175.61,175.56,31.54245558]
[1729793023841,59.70665558,175.61,175.55,31.54245558]
[1729793024134,22.4698,175.61,175.57,31.54245558]
[1729793024445,22.4698,175.61,175.59,31.54245558]
[1729793025141,5.6938,175.63,175.59,31.54245558]
[1729793025142,23.776884,175.63,175.59,31.54245558]
[1729793025750,5.6935,175.64,175.61,31.54245558]
[1729793026122,15.199,175.65,175.61,31.54245558]
[1729793026340,15.199,175.65,175.62,31.54245558]
[1729793026654,14.699,175.65,175.62,31.54245558]
[1729793028530,14.699,175.65,175.61,31.54245558]
[1729793033944,14.699,175.65,175.6,31.54245558]
[1729793037656,14.699,175.65,175.61,31.54245558]
[1729793039463,14.699,175.65,175.6,31.54245558]
[1729793039959,14.699,175.65,175.61,31.54245558]
[1729793041145,20.3922,175.65,175.61,31.54245558]
[1729793042273,20.3922,175.65,175.61,20.18235936]
[1729793042562,20.3922,175.65,175.6,20.18235936]
[1729793042944,14.699,175.65,175.6,20.18235936]
[1729793043145,6.2286,175.66,175.62,20.18235936]
[1729793043362,11.9214,175.66,175.62,20.18235936]
[1729793046254,16.5496,175.69,175.63,20.18235936]
[1729793046566,5.6912,175.71,175.67,20.18235936]
[1729793046767,5.93547494,175.72,175.7,20.18235936]
[1729793046952,16.3211,175.73,175.7,20.18235936]
[1729793047672,0.5927044,175.74,175.7,20.18235936]
[1729793047848,0.5927044,175.74,175.73,20.18235936]
[1729793049649,0.5927044,175.74,175.72,20.18235936]
[1729793049856,0.5927044,175.74,175.71,20.18235936]
[1729793050267,0.5927044,175.74,175.64,0.32549]
[1729793050479,0.5927044,175.74,175.71,31.49717386]
[1729793050850,0.5927044,175.74,175.73,31.49717386]
[1729793051961,2.26186439,175.9,175.73,31.49717386]
[1729793051962,2.26186439,175.9,175.74,24.127864]
[1729793052156,31.49717386,175.87,175.81,31.49717386]
[1729793052359,31.49717386,175.85,175.79,31.49717386]
[1729793052983,37.18387386,175.85,175.79,31.49717386]
[1729793054346,5.6867,175.85,175.81,31.49717386]
[1729793054748,5.6867,175.85,175.8,31.49717386]
[1729793055173,37.18317386,175.87,175.81,31.49717386]
[1729793056357,5.686,175.87,175.83,31.49717386]
[1729793056874,31.49717386,175.85,175.79,31.49717386]
[1729793057376,37.18387386,175.85,175.79,31.49717386]
[1729793057561,5.6867,175.85,175.8,31.49717386]
[1729793058573,5.6867,175.85,175.81,31.49717386]
[1729793059075,5.6867,175.85,175.8,31.49717386]
[1729793059677,5.6867,175.85,175.81,31.49717386]
[1729793060463,5.6867,175.85,175.8,31.49717386]
[1729793061559,5.6867,175.85,175.81,31.49717386]
[1729793062371,37.18387386,175.85,175.74,0.25098]
[1729793062554,31.49717386,175.83,175.78,31.49717386]
[1729793063568,31.49717386,175.8,175.75,31.49717386]
[1729793063771,31.49717386,175.79,175.74,31.49717386]
[1729793063959,31.49717386,175.78,175.73,31.49717386]
[1729793065377,5.689,175.78,175.74,31.49717386]
[1729793069276,37.18617386,175.78,175.73,31.49717386]
[1729793069781,37.18617386,175.78,175.72,31.49717386]
[1729793069967,37.18617386,175.78,175.73,31.49717386]
[1729793075579,37.18617386,175.78,175.68,1.416]
[1729793075887,37.18617386,175.78,175.73,31.49717386]
[1729793076270,25.84313508,175.78,175.73,20.15413508]
[1729793077082,5.689,175.78,175.73,20.15413508]
[1729793077268,25.84313508,175.78,175.73,20.15413508]
[1729793079209,25.34313508,175.78,175.73,20.15413508]
[1729793082106,5.189,175.78,175.74,20.15413508]
[1729793082692,15.0172,175.9,175.79,23.876884]
[1729793082873,5.6858,175.88,175.86,20.15413508]
[1729793083186,15.0172,175.9,175.86,20.15413508]
[1729793084298,20.7023,175.9,175.86,31.44118108]
[1729793085375,20.7023,175.9,175.87,31.44118108]
[1729793085579,20.7023,175.9,175.86,31.44118108]
[1729793085779,20.7023,175.9,175.85,31.44118108]
[1729793086782,20.7023,175.9,175.86,31.44118108]
[1729793087093,31.44118108,175.89,175.84,31.44118108]
[1729793087301,31.44118108,175.88,175.83,31.44118108]
[1729793087898,31.44118108,175.88,175.82,31.44118108]
[1729793088395,5.686,175.87,175.82,31.44118108]
[1729793089208,5.686,175.87,175.83,31.44118108]
[1729793090483,31.44118108,175.86,175.81,31.44118108]
[1729793090697,5.686,175.87,175.8,31.44118108]
[1729793090698,31.44118108,175.85,175.8,31.44118108]
[1729793090898,31.44118108,175.86,175.81,31.44118108]
[1729793092480,5.6866,175.85,175.81,31.44118108]
[1729793093596,5.6866,175.85,175.76,0.25098]
[1729793093800,37.12778108,175.85,175.8,31.44118108]
[1729793096402,0.5927044,175.92,175.86,0.1]
[1729793096610,0.5927044,175.92,175.91,31.44118108]
[1729793099307,0.5927044,175.92,175.88,31.44118108]
[1729793099496,0.5927044,175.92,175.87,31.44118108]
[1729793100599,0.5927044,175.92,175.88,31.44118108]
[1729793101013,0.5927044,175.92,175.91,31.44118108]
[1729793102703,0.5927044,175.92,175.91,51.79216108]
[1729793103093,16.0885,176.0,175.92,0.25098]
[1729793103293,16.1832,176.06,175.99,31.44118108]
[1729793103505,21.8633,176.06,176.01,31.44118108]
[1729793103821,16.1832,176.06,176.02,31.44118108]
[1729793104293,16.1832,176.06,176.03,31.44118108]
[1729793104692,16.1832,176.06,176.01,31.44118108]
[1729793105015,53.30418108,176.06,176.01,31.44118108]
[1729793106000,53.30418108,176.06,175.95,31.44118108]
[1729793106204,53.30418108,176.06,175.92,24.027864]
[1729793106205,31.44118108,176.04,175.98,31.44118108]
[1729793106415,31.44118108,176.02,175.97,31.44118108]
[1729793106588,31.44118108,175.99,175.87,0.2]
[1729793106799,12.0559,176.04,175.92,0.1]
[1729793107098,12.0559,176.04,175.99,31.44118108]
[1729793109306,12.0559,176.04,176.0,31.44118108]
[1729793110008,12.0559,176.04,175.99,31.44118108]
[1729793110406,12.0559,176.04,175.91,0.22549]
[1729793110407,12.0559,176.04,176.01,31.44118108]
[1729793110801,12.0559,176.04,175.95,15.72059054]
[1729793111007,12.0559,176.04,176.0,31.44118108]
[1729793111499,6.9332044,176.09,176.03,31.44118108]
[1729793111702,6.9332044,176.09,176.07,31.44118108]
[1729793112208,6.9332044,176.09,175.98,0.1]
[1729793112209,0.5927044,176.09,176.08,31.44118108]
[1729793115828,0.5927044,176.09,176.07,31.44118108]
[1729793116122,0.5927044,176.09,176.06,31.44118108]
[1729793117321,0.5927044,176.09,176.0,0.1]
[1729793117322,0.5927044,176.09,176.07,31.44118108]
[1729793119402,0.5927044,176.09,176.0,0.1]
[1729793119403,0.5927044,176.09,176.08,31.44118108]
[1729793121933,6.2717044,176.09,176.05,31.44118108]
[1729793122225,31.44118108,176.07,176.02,31.44118108]
[1729793122419,6.4895,176.08,176.01,31.44118108]
[1729793122420,31.44118108,176.06,176.01,31.44118108]
[1729793122627,31.44118108,176.07,176.02,31.44118108]
[1729793123235,37.12098108,176.07,176.02,31.44118108]
[1729793123737,6.4895,176.08,176.06,31.44118108]
[1729793123951,12.1688,176.08,176.06,31.44118108]
[1729793124349,12.1688,176.08,176.04,31.44118108]
[1729793124536,43.60998108,176.08,176.03,31.44118108]
[1729793126459,43.60998108,176.08,176.02,31.44118108]
[1729793127747,43.60998108,176.08,176.03,31.44118108]
[1729793131053,43.60998108,176.08,176.02,31.44118108]
[1729793131259,43.60998108,176.08,176.03,31.44118108]
[1729793131438,12.1688,176.08,176.03,31.44118108]
[1729793131636,0.5927044,176.09,176.07,31.44118108]
[1729793131841,0.5927044,176.09,176.06,31.44118108]
[1729793132256,0.5927044,176.09,176.07,31.44118108]
[1729793132438,0.5927044,176.09,176.06,31.44118108]
[1729793135346,0.5927044,176.09,176.05,31.44118108]
[1729793135546,31.44118108,176.07,175.96,20.2]
[1729793135855,31.44118108,176.07,176.02,31.44118108]
[1729793136557,31.44118108,176.06,176.01,31.44118108]
[1729793137068,31.44118108,176.08,176.02,31.44118108]
[1729793137446,5.6795,176.07,176.02,31.44118108]
[1729793137863,5.6795,176.07,176.03,31.44118108]
[1729793139452,37.12068108,176.07,176.02,31.44118108]
[1729793139656,37.12068108,176.07,176.01,31.44118108]
[1729793139831,31.44118108,176.06,176.01,31.44118108]
[1729793140033,37.12068108,176.07,176.01,31.44118108]
[1729793143620,31.44118108,176.07,176.02,31.44118108]
[1729793144619,5.6798,176.06,176.02,31.44118108]
[1729793148344,5.6798,176.06,176.02,20.08660538]
[1729793148846,5.6798,176.06,176.03,20.08660538]
[1729793149029,6.2717044,176.09,176.05,20.08660538]
[1729793149227,0.5927044,176.09,176.06,20.08660538]
[1729793149739,0.5927044,176.09,176.05,20.08660538]
[1729793150523,6.2716044,176.09,176.05,20.08660538]
[1729793151036,0.5927044,176.09,176.05,20.08660538]
[1729793152337,6.2716044,176.09,176.05,20.08660538]
[1729793153245,0.5927044,176.09,176.05,20.08660538]
[1729793153826,6.2716044,176.09,176.05,20.08660538]
[1729793154844,26.35820978,176.09,176.04,20.08660538]
[1729793155034,6.2716044,176.09,176.05,20.08660538]
[1729793155847,6.2716044,176.09,175.99,0.1]
[1729793155848,6.2716044,176.09,176.06,20.08660538]
[1729793156234,6.2716044,176.09,176.05,20.08660538]
[1729793156642,0.5927044,176.09,176.07,20.08660538]
[1729793157526,0.5927044,176.09,176.06,20.08660538]
[1729793161348,0.5927044,176.09,176.07,20.08660538]
[1729793161656,0.5927044,176.09,176.08,20.08660538]
[1729793163936,0.5927044,176.09,176.02,0.1]
[1729793164142,0.5927044,176.09,176.02,0.25098]
[1729793164348,0.5927044,176.09,176.07,20.08660538]
[1729793164547,0.5927044,176.09,176.06,20.08660538]
[1729793164853,0.5927044,176.09,176.02,0.25098]
[1729793165354,0.5927044,176.09,176.07,20.08660538]
[1729793165950,0.5927044,176.09,176.08,20.33758538]
[1729793166246,0.5927044,176.09,176.08,44.11446938]
[1729793166550,22.6247,176.21,176.1,0.35098]
[1729793166772,4.2315003,176.2,176.16,20.08660538]
[1729793166935,22.6247,176.21,176.16,20.08660538]
[1729793167133,22.6247,176.21,176.18,20.08660538]
[1729793167439,22.8910044,176.27,176.2,20.08660538]
[1729793167643,22.8910044,176.27,176.24,20.08660538]
[1729793167835,28.5641044,176.27,176.23,20.08660538]
[1729793168152,28.5641044,176.27,176.22,20.08660538]
[1729793168352,28.5641044,176.27,176.23,31.31350222]
[1729793168854,22.8910044,176.27,176.23,31.31350222]
[1729793169162,22.8910044,176.27,176.24,31.31350222]
[1729793169954,0.5927044,176.27,176.26,31.31350222]
[1729793170859,0.5927044,176.27,176.23,15.65675111]
[1729793171066,37.57930662,176.27,176.21,31.31350222]
[1729793171241,6.2658044,176.27,176.22,31.31350222]
[1729793171441,6.2658044,176.27,176.23,31.31350222]
[1729793171866,6.2658044,176.27,176.22,31.31350222]
[1729793172861,31.31350222,176.26,176.2,31.31350222]
[1729793173061,31.31350222,176.23,176.18,31.31350222]
[1729793173243,37.68110222,176.24,176.18,31.31350222]
[1729793173760,16.2158,176.23,176.18,31.31350222]
[1729793174563,5.6747,176.22,176.18,31.31350222]
[1729793177649,31.31350222,176.2,176.12,0.25098]
[1729793177968,31.31350222,176.2,176.15,31.31350222]
[1729793178471,5.6747,176.22,176.16,31.31350222]
[1729793178472,31.31350222,176.21,176.16,31.31350222]
[1729793178671,16.2158,176.23,176.07,20.0]
[1729793178672,5.6756,176.19,176.15,31.31350222]
[1729793180143,31.31350222,176.22,176.17,31.31350222]
[1729793180364,5.675,176.22,176.18,31.31350222]
[1729793180945,5.675,176.22,176.17,31.31350222]
[1729793181150,36.98850222,176.22,176.16,31.31350222]
[1729793182045,5.675,176.22,176.17,31.31350222]
[1729793183066,36.98850222,176.22,176.17,31.31350222]
[1729793183972,5.675,176.22,176.17,31.31350222]
[1729793184470,36.98850222,176.22,176.17,31.31350222]
[1729793184972,5.675,176.22,176.17,31.31350222]
[1729793186267,36.98850222,176.22,176.17,31.31350222]
[1729793186464,36.98850222,176.22,176.16,31.31350222]
[1729793186653,31.31350222,176.18,176.06,0.1]
[1729793186853,31.31350222,176.17,176.11,31.31350222]
[1729793187047,31.31350222,176.18,176.12,31.31350222]
[1729793187261,55.21587622,176.19,176.13,31.31350222]
[1729793188474,36.98950222,176.18,176.13,31.31350222]
[1729793190151,5.676,176.18,176.13,31.31350222]
[1729793190350,36.98950222,176.18,176.13,31.31350222]
[1729793191759,21.8903,176.23,176.17,31.31350222]
[1729793191969,53.20380222,176.23,176.17,31.31350222]
[1729793192159,31.31350222,176.21,176.16,31.31350222]
[1729793192560,31.31350222,176.22,176.16,31.31350222]
[1729793193061,31.31350222,176.22,176.17,31.31350222]
[1729793193657,5.675,176.21,176.17,31.31350222]
[1729793194474,5.675,176.21,176.09,0.2]
[1729793194777,31.31350222,176.2,176.15,31.31350222]
[1729793195079,36.98850222,176.21,176.15,31.31350222]
[1729793195753,31.31350222,176.2,176.15,31.31350222]
[1729793195955,31.31350222,176.16,176.11,31.31350222]
[1729793197177,36.99030222,176.16,176.11,31.31350222]
[1729793197477,5.6768,176.16,176.11,31.31350222]
[1729793199379,36.99030222,176.16,176.11,31.31350222]
[1729793200283,5.6768,176.16,176.11,31.31350222]
[1729793200772,5.6768,176.16,176.12,31.31350222]
[1729793202477,22.2742,176.23,176.15,31.31350222]
[1729793202659,22.2742,176.23,176.18,31.31350222]
[1729793203365,27.9486,176.23,176.18,31.31350222]
[1729793204078,59.26210222,176.23,176.18,31.31350222]
[1729793206861,53.58770222,176.23,176.18,31.31350222]
[1729793207081,22.2742,176.23,176.19,31.31350222]
[1729793207982,22.5267044,176.27,176.22,31.31350222]
[1729793208184,22.5267044,176.27,176.24,31.31350222]
[1729793209171,0.5927044,176.27,176.25,31.31350222]
[1729793209365,0.5927044,176.27,176.26,31.31350222]
[1729793210680,0.5927044,176.27,176.25,31.31350222]
[1729793212388,31.31350222,176.26,176.14,0.1]
[1729793212601,31.31350222,176.24,176.19,31.31350222]
[1729793213274,31.31350222,176.25,176.2,31.31350222]
[1729793214892,31.31350222,176.25,176.13,31.41350222]
[1729793214893,36.98740222,176.25,176.19,31.31350222]
[1729793215588,36.98740222,176.25,176.2,31.31350222]
[1729793215793,5.6739,176.25,176.2,31.31350222]
[1729793217987,5.6739,176.25,176.21,31.31350222]
[1729793218484,5.6739,176.25,176.2,31.31350222]
[1729793218988,36.98740222,176.25,176.2,31.31350222]
[1729793219491,31.31350222,176.23,176.18,31.31350222]
[1729793220689,36.98800222,176.23,176.18,31.31350222]
[1729793220989,31.31350222,176.21,176.16,31.31350222]
[1729793221288,31.31350222,176.19,176.14,31.31350222]
[1729793222092,31.31350222,176.17,176.12,31.31350222]
[1729793222669,5.6766,176.16,176.12,31.31350222]
[1729793224694,36.99010222,176.16,176.11,31.31350222]
[1729793224888,43.54810222,176.16,176.1,31.31350222]
[1729793225391,43.54810222,176.16,176.11,31.31350222]
[1729793225777,43.54810222,176.16,176.1,31.31350222]
[1729793225976,31.31350222,176.15,176.1,31.31350222]
[1729793227690,36.99070222,176.15,176.1,31.31350222]
[1729793228884,36.99070222,176.15,176.09,31.31350222]
[1729793232408,25.74743694,176.15,176.09,20.07023694]
[1729793233079,25.74743694,176.15,176.02,2.39489483]
[1729793233080,20.07023694,176.12,176.07,20.07023694]
[1729793234005,16.0234,176.14,176.07,20.07023694]
[1729793234006,20.07023694,176.13,176.07,20.07023694]
[1729793234317,25.74803694,176.13,176.07,20.07023694]
[1729793234500,20.07023694,176.12,176.0,24.027864]
[1729793234679,20.07023694,176.11,176.06,20.07023694]
[1729793234882,20.07023694,176.11,176.05,20.07023694]
[1729793235110,20.07023694,176.1,176.0,0.1]
[1729793235280,20.07023694,176.1,176.05,20.07023694]
[1729793235482,20.07023694,176.11,176.05,20.07023694]
[1729793236000,5.6785,176.1,176.05,20.07023694]
[1729793236888,20.07023694,176.08,176.03,20.07023694]
[1729793237798,26.26773694,176.07,176.02,20.07023694]
[1729793238013,26.26773694,176.07,176.03,20.07023694]
[1729793238014,6.1975,176.07,176.03,20.07023694]
[1729793238908,11.8771,176.07,176.03,20.07023694]
[1729793240408,11.8758,176.11,176.06,20.07023694]
[1729793240718,11.8758,176.11,176.07,20.07023694]
[1729793244891,6.1975,176.11,176.08,20.07023694]
[1729793245191,0.1,176.2,176.1,20.07023694]
[1729793245192,5.6776,176.13,176.1,20.07023694]
[1729793247418,6.4551,176.15,176.12,20.07023694]
[1729793247598,6.4551,176.15,176.13,20.07023694]
[1729793247808,6.4551,176.15,176.12,20.07023694]
[1729793248003,6.4551,176.15,176.11,20.07023694]
[1729793248310,6.4551,176.15,176.13,20.07023694]
[1729793249218,6.4551,176.15,176.12,20.07023694]
[1729793249426,32.20243694,176.15,176.05,0.12549]
[1729793249714,12.1322,176.15,176.11,20.07023694]
[1729793250813,6.4551,176.15,176.12,20.07023694]
[1729793253519,6.4551,176.15,176.06,0.12549]
[1729793253819,6.4551,176.15,176.11,20.07023694]
[1729793259392,6.4551,176.15,176.04,80.40643776]
[1729793259595,32.20243694,176.15,176.1,20.07023694]
[1729793260019,12.1322,176.15,176.1,20.07023694]
[1729793262707,12.1322,176.15,176.11,20.07023694]
[1729793262913,20.07023694,176.14,176.09,20.07023694]
[1729793263520,20.07023694,176.14,176.02,0.25098]
[1729793263705,20.07023694,176.14,176.08,20.07023694]
[1729793263903,12.1322,176.15,176.01,0.1]
[1729793263904,25.29801847,176.09,176.01,0.1]
[1729793264105,20.07023694,176.08,176.02,20.07023694]
[1729793264356,15.2629,176.09,176.04,20.07023694]
[1729793264516,15.2629,176.09,176.06,20.07023694]
[1729793265020,5.678,176.12,176.08,20.07023694]
[1729793265600,15.2629,176.13,176.11,20.07023694]
[1729793265799,15.2629,176.13,176.03,0.1]
[1729793266018,15.2629,176.13,176.1,20.07023694]
[1729793267127,15.2629,176.13,176.09,20.07023694]
[1729793270431,15.2629,176.13,176.1,20.07023694]
[1729793271107,15.2629,176.13,176.09,20.07023694]
[1729793276214,20.07023694,176.12,176.06,20.07023694]
[1729793276421,20.07023694,176.08,176.02,10.03511847]
[1729793276725,26.58513694,176.08,176.02,20.07023694]
[1729793276911,32.26433694,176.08,176.02,20.07023694]
[1729793277212,12.1941,176.08,176.03,20.07023694]
[1729793278202,20.07023694,176.07,176.02,20.07023694]
[1729793279103,32.26433694,176.08,176.02,20.07023694]
[1729793279812,20.07023694,176.07,176.01,20.07023694]
[1729793280010,20.07023694,176.06,176.0,5.9136774]
[1729793280222,20.07023694,176.07,176.01,20.07023694]
[1729793280538,20.07023694,176.02,175.97,20.07023694]
[1729793280707,20.07023694,176.02,175.96,20.07023694]
[1729793281028,16.2352,176.04,175.96,20.07023694]
[1729793281237,20.07023694,176.02,175.97,20.07023694]
[1729793281532,20.07023694,176.02,175.96,20.07023694]
[1729793281834,20.07023694,176.02,175.97,20.07023694]
[1729793282004,5.6808,176.03,175.98,20.07023694]
[1729793282204,25.75103694,176.03,175.98,20.07023694]
[1729793283311,25.75103694,176.03,175.97,20.07023694]
[1729793284547,20.07023694,176.02,175.97,20.07023694]
[1729793285324,20.07023694,176.0,175.91,0.25098]
[1729793285934,20.07023694,176.0,175.94,20.07023694]
[1729793286125,26.71103694,176.01,175.96,20.07023694]
[1729793286862,26.65494738,176.01,175.95,20.07023694]
[1729793287333,26.65494738,176.01,175.96,20.07023694]
[1729793290134,6.58471044,176.01,175.96,20.07023694]
[1729793290430,6.52862088,176.01,175.96,20.07023694]
[1729793290855,16.2352,176.04,175.99,20.07023694]
[1729793291139,16.4348,176.11,176.03,20.07023694]
[1729793291323,16.4348,176.11,176.07,20.07023694]
[1729793292238,22.113,176.11,176.07,10.03511847]
[1729793292543,22.113,176.11,176.06,31.36853722]
[1729793293568,16.4348,176.11,176.07,31.36853722]
[1729793293780,6.1377,176.12,176.1,15.68426861]
[1729793294088,6.1377,176.12,176.1,31.36853722]
[1729793294248,6.08161044,176.12,176.1,31.36853722]
[1729793295071,6.08161044,176.12,176.04,31.36853722]
[1729793295072,6.08161044,176.12,176.11,31.36853722]
[1729793295244,6.08161044,176.12,176.1,31.36853722]
[1729793295763,16.4348,176.15,176.1,31.36853722]
[1729793295944,53.48043722,176.15,176.1,31.36853722]
[1729793297456,59.61813722,176.15,176.1,31.36853722]
[1729793297660,28.2496,176.15,176.1,31.36853722]
[1729793298024,28.19351044,176.15,176.1,31.36853722]
[1729793299754,28.19351044,176.15,176.09,31.36853722]
[1729793299755,59.56204766,176.15,176.09,31.36853722]
[1729793300647,15.68426861,176.12,176.06,31.36853722]
[1729793300840,31.36853722,176.1,176.04,31.36853722]
[1729793301237,31.36853722,176.1,176.05,31.36853722]
[1729793301636,37.04713722,176.1,176.05,31.36853722]
[1729793302034,37.04713722,176.1,176.04,31.36853722]
[1729793306547,6.5758,176.08,176.03,31.36853722]
[1729793306746,31.36853722,176.05,175.99,31.36853722]
[1729793306959,31.36853722,176.04,175.99,31.36853722]
[1729793308042,31.36853722,176.05,175.99,31.36853722]
[1729793308240,31.36853722,176.05,175.9,8.20337264]